bitfinex/quotes_SOLUSD_20251103
["timestamp","ask_amount","ask_price","bid_price","bid_amount"]
[1762193162805,12.02188083,169.55,169.49,5.99996006]
[1762193163011,20.592,169.5,169.49,0.1]
[1762193163411,20.28237688,169.54,169.49,0.1]
[1762193163706,4.8946704,169.62,169.5,9.78882769]
[1762193163917,16.74558619,169.61,169.5,9.78882769]
[1762193164124,4.8946704,169.66,169.54,30.38082769]
[1762193164315,16.09910172,169.65,169.54,71.96882769]
[1762193164520,3.91910172,169.64,169.56,9.78882769]
[1762193164720,3.91910172,169.64,169.55,0.67]
[1762193164721,3.91910172,169.63,169.55,0.67]
[1762193164923,4.56910172,169.64,169.56,9.78882769]
[1762193165116,12.18,169.63,169.56,9.78882769]
[1762193165316,12.18,169.63,169.57,0.67]
[1762193165514,0.65,169.67,169.58,20.63922631]
[1762193165711,7.45237688,169.63,169.54,12.18]
[1762193165926,16.75002875,169.62,169.55,0.67]
[1762193166142,16.10002875,169.61,169.55,0.67]
[1762193166440,28.18653845,169.64,169.55,0.67]
[1762193166441,20.592,169.64,169.56,9.78882769]
[1762193166643,12.18,169.63,169.56,9.78882769]
[1762193166815,12.18,169.63,169.57,0.67]
[1762193167332,0.65,169.63,169.57,0.67]
[1762193167541,12.83,169.63,169.57,0.67]
[1762193167729,12.83,169.63,169.58,5.8969218]
[1762193168240,12.83,169.63,169.58,6.5669218]
[1762193168615,12.83,169.63,169.58,21.30922631]
[1762193169515,12.18,169.63,169.59,0.67]
[1762193169713,12.83,169.63,169.59,5.89640271]
[1762193170024,12.18,169.63,169.59,5.89640271]
[1762193170213,12.18,169.64,169.6,0.67]
[1762193170826,27.2780318,169.67,169.6,0.67]
[1762193171038,16.09986474,169.66,169.6,0.67]
[1762193171336,3.91986474,169.65,169.6,0.67]
[1762193171635,3.91986474,169.64,169.61,5.89587878]
[1762193171841,3.91986474,169.65,169.61,5.89587878]
[1762193172024,12.18,169.65,169.61,6.56587878]
[1762193172227,12.83,169.65,169.61,6.56587878]
[1762193172727,12.18,169.65,169.61,6.56587878]
[1762193173321,27.27805974,169.67,169.61,6.56587878]
[1762193173521,16.09881886,169.66,169.61,6.56587878]
[1762193173729,3.91881886,169.65,169.61,6.56587878]
[1762193173916,0.65,169.64,169.58,0.67]
[1762193174118,4.56881886,169.64,169.58,0.67]
[1762193174440,3.91881886,169.63,169.58,0.67]
[1762193174629,8.10237688,169.64,169.58,0.67]
[1762193174630,16.09881886,169.62,169.58,0.67]
[1762193174825,12.18,169.62,169.58,5.89685321]
[1762193175026,12.18,169.62,169.59,0.67]
[1762193175223,12.18,169.62,169.58,0.67]
[1762193175429,3.91612762,169.61,169.58,0.67]
[1762193175625,12.18,169.62,169.58,0.67]
[1762193175825,3.91526096,169.61,169.58,6.5666725]
[1762193176026,12.18,169.62,169.58,6.5666725]
[1762193176333,3.91087338,169.61,169.58,6.5666725]
[1762193176532,12.16,169.62,169.58,6.5666725]
[1762193176728,12.16,169.62,169.55,5.8979652]
[1762193176729,4.56255384,169.61,169.55,5.8979652]
[1762193176943,12.01493072,169.6,169.54,5.89824388]
[1762193177144,3.91255384,169.59,169.54,5.89824388]
[1762193177444,16.07255384,169.58,169.53,5.8985619]
[1762193177628,3.91255384,169.57,169.53,5.8985619]
[1762193177940,12.16,169.58,169.53,5.8985619]
[1762193177941,18.70718829,169.58,169.53,6.5685619]
[1762193178137,3.90764089,169.57,169.54,0.67]
[1762193178336,12.16,169.58,169.54,0.67]
[1762193178541,3.90664701,169.57,169.54,0.67]
[1762193178740,12.81,169.58,169.53,20.6452144]
[1762193179055,3.90626385,169.57,169.53,6.5685619]
[1762193179350,3.90463202,169.56,169.53,6.5685619]
[1762193179659,18.70699512,169.58,169.53,6.5685619]
[1762193179834,3.90225484,169.57,169.53,6.5685619]
[1762193180032,3.90225484,169.56,169.53,6.5685619]
[1762193180236,0.65,169.57,169.53,5.8985619]
[1762193180421,3.90244749,169.56,169.53,5.8985619]
[1762193180622,6.54742861,169.57,169.5,12.16]
[1762193180817,4.55233114,169.56,169.5,0.67]
[1762193181047,16.08233114,169.55,169.5,0.67]
[1762193181255,3.90323278,169.54,169.5,0.67]
[1762193181456,0.65,169.54,169.49,5.99981305]
[1762193181756,3.90240719,169.53,169.49,6.66981305]
[1762193181936,4.55336467,169.54,169.49,6.66981305]
[1762193182124,3.90336467,169.53,169.49,6.66981305]
[1762193182330,6.54831784,169.54,169.49,6.66981305]
[1762193182554,4.55091084,169.53,169.49,0.1]
[1762193182736,3.89922542,169.52,169.49,0.1]
[1762193183051,4.54922542,169.52,169.49,0.1]
[1762193183229,12.18,169.51,169.49,0.1]
[1762193183425,63.192,169.54,169.5,0.67]
[1762193183754,4.87920584,169.6,169.51,9.78882769]
[1762193183927,16.06687507,169.59,169.51,9.78882769]
[1762193184129,3.88687507,169.58,169.51,14.74823439]
[1762193184345,3.88687507,169.57,169.51,15.41823439]
[1762193184655,3.88687507,169.56,169.51,15.41823439]
[1762193184847,8.10237688,169.58,169.51,5.89935697]
[1762193185035,4.53819398,169.57,169.51,5.89935697]
[1762193185227,3.88819398,169.56,169.51,21.31774939]
[1762193185549,12.18,169.57,169.52,0.67]
[1762193185750,3.89054813,169.56,169.52,0.67]
[1762193185927,3.89054813,169.55,169.52,0.67]
[1762193186132,12.18,169.57,169.53,5.898661]
[1762193186450,3.89067586,169.56,169.53,5.898661]
[1762193186655,3.89067586,169.55,169.53,5.898661]
[1762193186838,12.83,169.57,169.53,5.898661]
[1762193187027,3.89032707,169.56,169.53,6.568661]
[1762193187229,12.18,169.57,169.53,6.568661]
[1762193187430,3.89179353,169.56,169.53,6.568661]
[1762193187731,12.18,169.57,169.53,6.568661]
[1762193187931,3.89295136,169.56,169.53,6.568661]
[1762193188145,12.18,169.57,169.53,6.568661]
[1762193188339,3.89347676,169.56,169.53,6.568661]
[1762193188540,12.18,169.57,169.53,6.568661]
[1762193188748,3.89200905,169.56,169.53,6.568661]
[1762193189050,12.18,169.57,169.53,6.568661]
[1762193189352,6.54666414,169.59,169.54,0.67]
[1762193189353,3.89159242,169.56,169.54,0.67]
[1762193189649,12.18,169.59,169.54,0.67]
[1762193189853,4.60111282,169.58,169.54,0.67]
[1762193190054,3.89111282,169.57,169.53,5.898661]
[1762193190257,3.89111282,169.56,169.53,5.898661]
[1762193190430,0.71,169.58,169.53,6.568661]
[1762193190626,3.88853201,169.57,169.53,21.3153135]
[1762193190851,3.88853201,169.56,169.53,21.3153135]
[1762193191032,43.31,169.58,169.53,21.3153135]
[1762193191231,3.89008733,169.57,169.53,21.3153135]
[1762193191445,3.89008733,169.56,169.54,0.67]
[1762193191651,55.49,169.58,169.53,21.3153135]
[1762193191845,3.89123696,169.57,169.53,21.3153135]
[1762193192045,3.89123696,169.56,169.53,21.3153135]
[1762193192233,55.49,169.58,169.53,21.3153135]
[1762193192434,3.89156437,169.57,169.53,21.3153135]
[1762193192641,3.89156437,169.56,169.53,6.568661]
[1762193192835,54.78,169.58,169.53,5.898661]
[1762193193039,3.89090517,169.57,169.53,5.898661]
[1762193193335,3.89090517,169.56,169.53,5.898661]
[1762193193567,0.66,169.57,169.53,5.898661]
[1762193193748,3.89152783,169.56,169.53,5.898661]
[1762193193943,0.66,169.57,169.53,5.898661]
[1762193194142,3.88918691,169.56,169.53,5.898661]
[1762193194453,3.88918691,169.56,169.51,15.41836749]
[1762193194454,0.66,169.57,169.52,20.64653137]
[1762193194755,3.8872861,169.56,169.52,20.64653137]
[1762193194971,12.18,169.57,169.53,0.67]
[1762193196334,12.18,169.57,169.54,5.89831308]
[1762193196951,0.66,169.56,169.54,5.89831308]
[1762193197147,3.88712679,169.55,169.53,5.89853973]
[1762193197345,0.66,169.56,169.53,5.89853973]
[1762193197550,3.88599786,169.55,169.53,5.89853973]
[1762193197848,0.66,169.56,169.53,5.89853973]
[1762193198049,3.88804199,169.55,169.51,5.89935697]
[1762193198245,0.66,169.56,169.51,5.89935697]
[1762193198561,12.18,169.54,169.5,5.89970501]
[1762193198752,3.88955417,169.53,169.5,5.89970501]
[1762193198950,12.84,169.54,169.5,5.89970501]
[1762193199139,4.54686793,169.53,169.5,5.89970501]
[1762193199343,0.66,169.53,169.49,5.9999459]
[1762193199538,4.54650766,169.52,169.49,0.1]
[1762193199740,0.66,169.53,169.49,6.00003552]
[1762193199945,3.88764895,169.52,169.49,0.1]
[1762193200144,16.06764895,169.51,169.49,0.1]
[1762193200451,12.18,169.51,169.49,0.1]
[1762193201164,12.84,169.51,169.49,0.1]
[1762193202445,12.18,169.51,169.49,0.1]
[1762193202842,12.84,169.51,169.49,0.1]
[1762193203252,4.5445645,169.5,169.49,0.1]
[1762193203553,16.72416989,169.5,169.49,0.1]
[1762193204669,4.54416989,169.5,169.49,0.1]
[1762193204869,16.72416989,169.5,169.49,0.1]
[1762193205771,16.72692548,169.5,169.49,0.1]
[1762193206272,27.30547679,169.5,169.49,0.1]
[1762193206962,21.40577178,169.5,169.49,0.1]
[1762193207167,16.72692548,169.5,169.49,0.1]
[1762193208055,27.52813668,169.5,169.49,0.1]
[1762193208259,29.38312711,169.5,169.49,0.1]
[1762193208658,24.62378249,169.5,169.49,0.1]
[1762193210676,4.54692548,169.5,169.49,0.1]
[1762193210887,22.62663049,169.5,169.49,0.1]
[1762193211381,24.48162092,169.5,169.49,0.1]
[1762193212076,22.62663049,169.5,169.49,0.1]
[1762193212454,22.76879206,169.5,169.49,0.1]
[1762193212880,10.58879206,169.5,169.49,0.1]
[1762193213093,22.76879206,169.5,169.49,0.1]
[1762193213482,24.62378249,169.5,169.49,0.1]
[1762193215674,22.76879206,169.5,169.49,0.1]
[1762193216188,24.62378249,169.5,169.49,0.1]
[1762193219090,10.58879206,169.5,169.49,0.1]
[1762193219289,16.20908705,169.5,169.49,0.1]
[1762193219484,22.76879206,169.5,169.49,0.1]
[1762193220369,10.58879206,169.5,169.49,0.1]
[1762193220972,22.76879206,169.5,169.49,0.1]
[1762193222987,3.88692548,169.5,169.49,0.1]
[1762193223196,3.88692548,169.5,169.49,6.6700531]
[1762193223373,16.07778478,169.52,169.49,6.6700531]
[1762193223574,12.18,169.52,169.49,21.42018585]
[1762193223776,12.18,169.52,169.5,0.67]
[1762193224189,12.18,169.52,169.49,20.75018585]
[1762193224392,12.18,169.52,169.49,21.42018585]
[1762193224894,4.85865685,169.59,169.51,9.78882769]
[1762193225206,16.079679,169.58,169.52,0.67]
[1762193225489,3.899679,169.57,169.52,0.67]
[1762193225678,12.18,169.58,169.52,0.67]
[1762193225872,3.89887995,169.57,169.52,0.67]
[1762193226076,12.18,169.58,169.52,0.67]
[1762193226290,3.90119856,169.57,169.52,0.67]
[1762193226489,12.18,169.58,169.53,5.898661]
[1762193226692,3.90101827,169.57,169.53,6.568661]
[1762193226994,3.90101827,169.56,169.53,6.568661]
[1762193227195,12.18,169.57,169.53,6.568661]
[1762193227385,3.90192146,169.56,169.53,6.568661]
[1762193227584,12.18,169.57,169.54,0.67]
[1762193227795,3.90183659,169.56,169.52,5.89897861]
[1762193227993,3.90183659,169.55,169.52,5.89897861]
[1762193228302,12.18,169.57,169.52,6.56897861]
[1762193228504,3.9003138,169.56,169.54,5.89831308]
[1762193228670,12.18,169.57,169.54,5.89831308]
[1762193228875,3.90083808,169.56,169.53,0.67]
[1762193229090,3.90154106,169.55,169.53,0.67]
[1762193229276,12.18,169.57,169.53,6.56865573]
[1762193229475,3.90127482,169.56,169.53,6.56865573]
[1762193229675,12.18,169.57,169.53,6.56865573]
[1762193229996,3.90107589,169.56,169.53,6.56865573]
[1762193230196,12.18,169.57,169.54,0.67]
[1762193230498,4.85865685,169.61,169.54,0.67]
[1762193230499,12.16,169.58,169.54,0.67]
[1762193231075,4.62136576,169.57,169.52,6.56900896]
[1762193231275,0.72,169.57,169.52,6.56900896]
[1762193231579,3.90181679,169.56,169.53,0.67]
[1762193231775,3.9020433,169.57,169.53,0.67]
[1762193232106,3.90111651,169.56,169.52,5.89900896]
[1762193232403,12.16,169.58,169.54,5.89831308]
[1762193232604,3.90225881,169.57,169.54,5.89831308]
[1762193232815,3.90225881,169.56,169.51,9.78882769]
[1762193232975,3.90225881,169.56,169.49,12.28]
[1762193232976,9.27495215,169.52,169.49,0.1]
[1762193233176,1.997152,169.5,169.49,0.1]
[1762193233387,4.04442038,169.5,169.49,0.1]
[1762193233581,6.61941081,169.5,169.49,0.1]
[1762193233902,11.47806766,169.5,169.49,0.1]
[1762193234317,6.61941081,169.5,169.49,0.1]
[1762193234613,11.47806766,169.5,169.49,0.1]
[1762193234796,17.37777267,169.5,169.49,0.1]
[1762193235304,27.16660036,169.5,169.49,0.1]
[1762193235516,1.85499043,169.42,169.38,6.57387046]
[1762193235684,1.85499043,169.4,169.35,6.67485433]
[1762193236016,14.01499043,169.39,169.35,0.77]
[1762193236312,12.16,169.38,169.35,0.77]
[1762193236886,12.16,169.38,169.36,5.90449795]
[1762193237481,12.16,169.38,169.35,6.67489825]
[1762193238086,12.16,169.38,169.35,0.1]
[1762193238391,12.16,169.38,169.35,6.00467384]
[1762193238589,14.01499043,169.38,169.36,5.90456785]
[1762193239004,12.16,169.38,169.37,6.00423333]
[1762193239814,0.72,169.4,169.37,6.00423333]
[1762193239815,22.44699043,169.39,169.37,0.1]
[1762193239998,16.07197214,169.38,169.37,6.00423333]
[1762193240321,18.6457719,169.38,169.37,0.1]
[1762193240914,3.89078147,169.38,169.37,0.1]
[1762193241119,12.18,169.38,169.37,6.00423333]
[1762193241895,16.07080691,169.38,169.37,6.00423333]
[1762193242797,12.18,169.38,169.37,0.1]
[1762193242994,16.06972561,169.38,169.37,0.1]
[1762193243227,18.78687761,169.38,169.37,0.1]
[1762193243502,24.69076236,169.38,169.37,0.1]
[1762193244997,46.77192015,169.38,169.37,0.1]
[1762193245201,39.35195843,169.38,169.37,0.1]
[1762193245409,34.47959005,169.38,169.37,0.1]
[1762193245597,20.592,169.36,169.34,0.1]
[1762193245804,18.06687761,169.35,169.34,0.1]
[1762193246008,18.78687761,169.35,169.34,0.1]
[1762193246327,25.25789212,169.35,169.34,0.1]
[1762193246494,12.35789212,169.35,169.34,0.1]
[1762193246831,18.78687761,169.35,169.34,0.1]
[1762193247321,25.25789212,169.35,169.34,0.1]
[1762193247901,31.16282273,169.35,169.34,0.1]
[1762193248323,25.25789212,169.35,169.34,0.1]
[1762193248522,13.07789212,169.35,169.34,0.1]
[1762193248723,25.25789212,169.35,169.34,0.1]
[1762193249624,18.78687761,169.35,169.34,0.1]
[1762193250522,23.6246343,169.35,169.32,0.1]
[1762193250713,3.88972561,169.34,169.32,0.1]
[1762193250913,3.88972561,169.33,169.32,0.1]
[1762193252531,3.88972561,169.33,169.32,6.00597684]
[1762193253717,5.74471604,169.33,169.32,0.1]
[1762193254116,5.74471604,169.33,169.32,6.00597684]
[1762193254726,3.88972561,169.33,169.32,6.67597684]
[1762193255914,3.86202146,169.33,169.32,6.67597684]
[1762193257450,18.56701189,169.33,169.32,0.1]
[1762193257942,24.47263995,169.33,169.32,0.1]
[1762193258529,25.52392206,169.33,169.32,0.1]
[1762193258922,16.71202146,169.33,169.32,0.1]
[1762193259136,19.618294,169.33,169.32,0.1]
[1762193259829,25.52392206,169.33,169.32,0.1]
[1762193260038,19.618294,169.33,169.32,0.1]
[1762193260234,24.45605069,169.33,169.32,0.1]
[1762193260739,25.52392206,169.33,169.32,0.1]
[1762193260945,3.86202146,169.33,169.32,0.1]
[1762193261118,3.86202146,169.33,169.32,6.00597684]
[1762193261742,3.86202146,169.33,169.32,0.1]
[1762193261938,38.75370549,169.33,169.32,0.1]
[1762193262118,33.93592206,169.33,169.32,0.1]
[1762193262440,28.030294,169.33,169.26,6.57798679]
[1762193262620,2.90627254,169.31,169.26,6.57798679]
[1762193262939,3.86202146,169.3,169.26,6.57798679]
[1762193263235,3.86202146,169.29,169.27,0.67]
[1762193263444,3.86202146,169.28,169.27,0.67]
[1762193264040,3.86202146,169.28,169.26,5.90798679]
[1762193264245,12.18,169.29,169.26,5.90798679]
[1762193264246,3.86202146,169.27,169.26,6.57798679]
[1762193264418,3.86202146,169.27,169.26,21.34816285]
[1762193264943,3.86202146,169.27,169.26,20.67816285]
[1762193265455,56.55720358,169.27,169.16,0.67]
[1762193265740,7.47243847,169.21,169.16,6.58148467]
[1762193266040,23.53445993,169.2,169.16,5.91148467]
[1762193266218,23.53445993,169.2,169.09,62.66126921]
[1762193266219,28.06443847,169.18,169.09,6.39513358]
[1762193266425,20.87414062,169.17,169.1,0.67]
[1762193266734,3.86202146,169.16,169.1,0.67]
[1762193266925,3.86202146,169.15,169.11,5.91331086]
[1762193267122,3.86202146,169.14,169.11,5.91331086]
[1762193267323,3.86202146,169.13,169.11,6.58331086]
[1762193267527,3.86202146,169.12,169.11,21.36658801]
[1762193267835,17.05211916,169.19,169.12,0.67]
[1762193268035,3.84394335,169.18,169.12,0.67]
[1762193268238,3.84394335,169.17,169.12,0.67]
[1762193268544,4.81211916,169.2,169.12,0.67]
[1762193268545,3.84394335,169.16,169.12,0.67]
[1762193268746,17.05211916,169.2,169.13,9.78882769]
[1762193268925,3.8421391,169.19,169.13,9.78882769]
[1762193269242,3.8421391,169.18,169.14,21.3629171]
[1762193269445,3.8421391,169.17,169.14,21.3629171]
[1762193269646,4.81211916,169.22,169.15,0.67]
[1762193269848,3.8414563,169.21,169.15,0.67]
[1762193270023,4.81211916,169.25,169.16,59.78882769]
[1762193270222,12.24,169.26,169.18,9.78882769]
[1762193270223,3.84216165,169.24,169.18,9.78882769]
[1762193270549,3.84216165,169.23,169.18,9.78882769]
[1762193270731,3.84216165,169.22,169.19,0.67]
[1762193271047,4.81211916,169.27,169.21,20.68435671]
[1762193271345,8.65663319,169.26,169.21,20.68435671]
[1762193271535,3.84451403,169.25,169.21,21.35435671]
[1762193271842,3.84451403,169.24,169.22,0.67]
[1762193272055,3.84451403,169.23,169.22,0.67]
[1762193272936,4.81211916,169.28,169.22,0.67]
[1762193273138,4.81211916,169.28,169.23,20.68191218]
[1762193273635,5.48211916,169.28,169.23,21.35191218]
[1762193274142,4.81211916,169.28,169.24,0.67]
[1762193274649,4.81211916,169.29,169.24,0.67]
[1762193275244,4.81211916,169.28,169.25,20.67946823]
[1762193275446,4.81211916,169.29,169.25,20.67946823]
[1762193275636,12.24,169.32,169.26,0.67]
[1762193275835,12.24,169.32,169.25,32.91946823]
[1762193275836,0.67,169.31,169.25,32.91946823]
[1762193276129,0.67,169.31,169.25,33.58946823]
[1762193276871,25.40411916,169.36,169.25,33.58946823]
[1762193276872,0.67,169.36,169.26,10.45882769]
[1762193277046,12.91,169.36,169.26,10.45882769]
[1762193277245,12.91,169.36,169.29,20.67458207]
[1762193277559,0.67,169.36,169.3,9.78882769]
[1762193277850,0.67,169.36,169.3,10.45882769]
[1762193278053,4.81211916,169.4,169.3,9.78882769]
[1762193278257,29.09375432,169.54,169.33,120.592]
[1762193278258,12.09491275,169.46,169.33,120.592]
[1762193278455,7.47243847,169.45,169.34,9.78882769]
[1762193278666,8.14243847,169.46,169.35,12.3]
[1762193278837,7.47243847,169.45,169.35,12.97]
[1762193279044,7.47243847,169.45,169.37,9.78882769]
[1762193279245,0.67,169.45,169.39,5.90353621]
[1762193279452,0.67,169.45,169.39,20.66237675]
[1762193280760,0.67,169.48,169.4,0.67]
[1762193280966,0.67,169.48,169.41,12.3]
[1762193281345,0.67,169.48,169.42,20.65871797]
[1762193281959,0.2,169.5,169.43,0.67]
[1762193282166,0.2,169.5,169.44,12.3]
[1762193282541,0.92,169.5,169.42,20.65871797]
[1762193282742,0.72,169.49,169.42,33.61871797]
[1762193282945,7.67243847,169.5,169.42,33.61871797]
[1762193282946,0.2,169.5,169.43,9.78882769]
[1762193283150,0.92,169.5,169.43,0.66]
[1762193283353,0.92,169.5,169.44,5.90179414]
[1762193283552,0.72,169.49,169.43,5.90212238]
[1762193284438,0.2,169.5,169.44,0.66]
[1762193285460,0.2,169.5,169.46,9.78882769]
[1762193285641,0.2,169.5,169.47,12.3]
[1762193285842,0.2,169.5,169.47,12.96]
[1762193286456,0.2,169.5,169.48,12.28]
[1762193286652,0.2,169.5,169.46,9.78882769]
[1762193286957,0.2,169.5,169.48,0.66]
[1762193287465,0.2,169.5,169.49,15.68888079]
[1762193287765,0.2,169.5,169.49,16.34888079]
[1762193287969,0.2,169.5,169.49,6.5600531]
[1762193288267,0.2,169.5,169.49,5.9000531]
[1762193288460,0.2,169.5,169.49,18.1800531]
[1762193288975,0.2,169.5,169.49,18.8400531]
[1762193289355,0.2,169.5,169.49,18.1800531]
[1762193290071,0.2,169.5,169.47,18.18041639]
[1762193291353,0.2,169.5,169.47,5.90041639]
[1762193292364,0.2,169.5,169.47,20.65228987]
[1762193292573,0.2,169.5,169.47,5.90041639]
[1762193292743,0.2,169.5,169.48,0.66]
[1762193293161,0.2,169.5,169.49,12.28]
[1762193294074,0.2,169.5,169.47,20.65228987]
[1762193294272,0.2,169.5,169.47,32.93228987]
[1762193296068,0.2,169.5,169.47,33.59228987]
[1762193296449,0.2,169.5,169.47,20.65228987]
[1762193296652,0.2,169.5,169.48,12.26]
[1762193296948,0.2,169.5,169.49,9.78882769]
[1762193297169,0.2,169.5,169.48,12.26]
[1762193297367,0.2,169.5,169.47,20.65228987]
[1762193297368,0.72,169.49,169.47,5.90041639]
[1762193297576,0.2,169.5,169.47,5.90041639]
[1762193297577,0.2,169.5,169.47,18.18041639]
[1762193297877,8.19243847,169.49,169.42,9.78882769]
[1762193298076,8.19243847,169.49,169.43,12.28]
[1762193298252,0.72,169.48,169.43,12.28]
[1762193299364,20.792,169.5,169.45,0.66]
[1762193299748,0.2,169.5,169.45,0.66]
[1762193299952,0.2,169.5,169.46,9.78882769]
[1762193300172,0.2,169.5,169.47,0.66]
[1762193300370,0.2,169.5,169.48,9.78882769]
[1762193300551,1e-08,169.5,169.49,27.96888079]
[1762193300868,1e-08,169.5,169.49,28.62888079]
[1762193301771,1e-08,169.5,169.49,5.9000531]
[1762193303462,1e-08,169.5,169.48,5.90029288]
[1762193303793,0.72000001,169.5,169.48,5.90029288]
[1762193304076,0.72000001,169.5,169.46,18.1810976]
[1762193304397,8.19243848,169.5,169.46,5.9010976]
[1762193304859,0.72,169.49,169.46,5.9010976]
[1762193307470,0.72,169.49,169.41,9.78882769]
[1762193307673,14.09250595,169.49,169.42,12.26]
[1762193307865,0.67,169.48,169.42,18.16249085]
[1762193308386,0.67,169.48,169.42,18.83249085]
[1762193309080,21.26200001,169.5,169.43,0.67]
[1762193309264,1e-08,169.5,169.44,80.38082769]
[1762193309462,1e-08,169.5,169.46,9.78882769]
[1762193309776,1e-08,169.5,169.46,59.78882769]
[1762193309979,1e-08,169.5,169.48,9.78882769]
[1762193310173,1e-08,169.5,169.49,22.71882769]
[1762193310968,1e-08,169.5,169.49,28.61888079]
[1762193313464,3.87285722,169.58,169.53,9.78882769]
[1762193313677,3.88735394,169.6,169.55,9.78882769]
[1762193313871,3.88735394,169.59,169.55,9.78882769]
[1762193314083,3.88735394,169.6,169.55,9.78882769]
[1762193314407,3.88735394,169.59,169.54,12.95]
[1762193314687,3.88735394,169.58,169.54,12.95]
[1762193314989,3.88735394,169.57,169.54,12.95]
[1762193315286,0.7,169.59,169.55,5.8979652]
[1762193315475,3.89954521,169.58,169.55,5.8979652]
[1762193315660,3.89954521,169.57,169.55,5.8979652]
[1762193315868,3.89954521,169.56,169.55,5.8979652]
[1762193317489,9.76453542,169.64,169.55,5.8979652]
[1762193317490,0.7,169.63,169.56,9.78882769]
[1762193317792,0.7,169.63,169.58,9.78882769]
[1762193317987,0.9,169.67,169.6,9.78882769]
[1762193318171,0.9,169.67,169.61,12.24]
[1762193318377,0.9,169.66,169.61,12.93]
[1762193318875,0.2,169.66,169.62,0.69]
[1762193319079,0.9,169.66,169.62,0.69]
[1762193319379,0.9,169.66,169.63,5.89518363]
[1762193319674,0.2,169.66,169.62,5.8955079]
[1762193319882,0.7,169.65,169.62,5.8955079]
[1762193320079,0.9,169.66,169.62,5.8955079]
[1762193320577,0.2,169.66,169.62,5.8955079]
[1762193320775,0.7,169.65,169.62,5.8955079]
[1762193321088,0.2,169.66,169.62,6.5855079]
[1762193321289,0.9,169.66,169.62,5.8955079]
[1762193321988,0.2,169.66,169.61,5.89579932]
[1762193322174,0.7,169.65,169.61,5.89579932]
[1762193322570,0.7,169.65,169.61,6.58579932]
[1762193324477,0.7,169.65,169.61,5.89579932]
[1762193324796,0.7,169.65,169.61,6.58579932]
[1762193325783,0.7,169.65,169.61,5.89579932]
[1762193327596,0.7,169.65,169.61,6.58579932]
[1762193327998,0.7,169.65,169.61,5.89579932]
[1762193328695,0.7,169.65,169.61,6.58579932]
[1762193329596,3.91121363,169.64,169.61,6.58579932]
[1762193329790,3.91121363,169.63,169.61,6.58579932]
[1762193329987,3.91121363,169.62,169.61,6.58579932]
[1762193330303,0.7,169.65,169.61,6.58579932]
[1762193330594,3.91067042,169.64,169.61,6.58579932]
[1762193330800,3.91067042,169.63,169.61,6.58579932]
[1762193330994,3.91067042,169.62,169.61,6.58579932]
[1762193331296,0.7,169.65,169.61,6.58579932]
[1762193331507,3.91042176,169.64,169.61,6.58579932]
[1762193331681,3.91042176,169.63,169.61,6.58579932]
[1762193331879,0.7,169.65,169.61,6.58579932]
[1762193332200,3.91000527,169.64,169.61,5.89579932]
[1762193332377,3.91000527,169.63,169.61,5.89579932]
[1762193332577,0.7,169.65,169.61,6.58579932]
[1762193332788,3.90879421,169.64,169.61,6.58579932]
[1762193332984,3.90879421,169.63,169.61,6.58579932]
[1762193333198,3.90787896,169.64,169.61,6.58579932]
[1762193333396,0.7,169.65,169.61,5.89579932]
[1762193333609,3.90724339,169.64,169.61,5.89579932]
[1762193333777,4.82249827,169.62,169.53,6.588661]
[1762193333977,4.82249827,169.58,169.53,5.898661]
[1762193334285,3.9055317,169.57,169.53,6.588661]
[1762193334483,3.9055317,169.56,169.54,0.69]
[1762193334698,8.72802997,169.57,169.54,0.69]
[1762193335000,3.90637418,169.56,169.51,12.89]
[1762193335179,4.60637418,169.56,169.52,0.69]
[1762193335581,20.592,169.57,169.53,5.898661]